Cogmind - Beta 13 *** ADVENTURER MODE // 2024.04.02 @ 11:16:38 Player: owo Result: Destroyed by L-31 Rogue with Katana Performance ------------- Evolutions (2) 1000 Regions Visited (5) 1000 Robots Destroyed (30) 150 Value Destroyed (703) 703 Prototype IDs (3) 60 Alien Tech Used (0) 0 Bonus (32) 32 TOTAL SCORE: 2945 Bonus ------- Follower Combat Kills 32 Cogmind --------- Core Integrity 0/550 Matter 179/300 Energy 100/100 System Corruption 0% Temperature Cool (0) Movement Walking (120) Location -8/Materials Parts ------- > --- POWER (2) -------- (None) > --- PROPULSION (3) --- Carbon-fiber Leg > --- UTILITY (3) ------ Signal Interpreter > --- WEAPON (3) ------- Minigun Gauss Rifle Missile Launcher > --- INVENTORY (5) ---- Nuclear Core Carbon-fiber Leg Machine Analyzer Decoy Drone Bay (16/16) Peak State ------------ > --- POWER ------------ Light Nuclear Core > --- PROPULSION ------- Aluminum Leg Aluminum Leg > --- UTILITY ---------- Decoy Drone Bay > --- WEAPON ----------- Light Assault Rifle Light Assault Rifle > --- INVENTORY -------- Improved Heat Sink Improved Terrain Scanner Medium Laser [Rating: 21] Favorites ----------- Power Light Nuclear Core Engine Ion Engine Power Core Light Nuclear Core Propulsion Aluminum Leg Treads Light Treads Leg Aluminum Leg Utility Small Storage Unit Device Improved Terrain Scanner Storage Small Storage Unit Processor Signal Interpreter Weapon Light Assault Rifle Energy Gun Small Laser Ballistic Gun Light Assault Rifle Launcher Missile Launcher Build | -11 -10 -10 -10 -9 -8 ------- Run | Yrd Mat Min Exi Min Mat Slots Evolved 4 | . . . . . 4 Power 1 | . . . . . 1 Propulsion 1 | . . . . . 1 Utility 1 | . . . . . 1 Weapon 1 | . . . . . 1 Parts Attached 28 | 8 5 4 1 . 10 Power 4 | 1 1 . 1 . 1 Engine 2 | 1 . . . . 1 Core 2 | . 1 . 1 . . Reactor . | . . . . . . Propulsion 6 | 2 2 . . . 2 Treads 2 | 2 . . . . . Leg 4 | . 2 . . . 2 Wheel . | . . . . . . Hover . | . . . . . . Flight . | . . . . . . Utility 8 | 2 . 4 . . 2 Device 5 | 1 . 3 . . 1 Storage 2 | 1 . 1 . . . Processor 1 | . . . . . 1 Hackware . | . . . . . . Protection . | . . . . . . Artifact . | . . . . . . Weapon 10 | 3 2 . . . 5 Energy Gun 4 | 3 . . . . 1 Energy Cannon . | . . . . . . Ballistic Gun 5 | . 2 . . . 3 Ballistic Cannon . | . . . . . . Launcher 1 | . . . . . 1 Special Weapon . | . . . . . . Impact Weapon . | . . . . . . Slashing Weapon . | . . . . . . Piercing Weapon . | . . . . . . Special Melee Weapon . | . . . . . . Unidentified Prototypes 1 | . . 1 . . . Parts Lost 11 | . . . . 5 6 Power 2 | . . . . 1 1 Propulsion 3 | . . . . 2 1 Utility 3 | . . . . . 3 Weapon 3 | . . . . 2 1 Highest Loss Streak 5 | . . . . 5 4 To Critical Strikes . | . . . . . . Average Slot Usage (%) 85 | . 100 100 100 76 27 Engine 1 | . 5 . . . . Core 10 | . 8 14 14 10 . Treads 5 | . 24 . . . . Leg 16 | . 3 28 28 19 . Device 12 | . 14 14 14 14 5 Storage 12 | . 14 13 14 14 8 Energy Gun 2 | . 10 . . . . Ballistic Gun 21 | . 17 28 28 17 5 Naked Turns . | . . . . . . Heaviest Build 18 | 13 13 13 13 13 18 Greatest Support 40 | 40 40 20 20 20 15 Greatest Overweight (x) 4 | . 1 . . 3 4 Average Overweight (x) . | . . . . . 1 Largest Inventory Capacity 8 | 8 8 8 8 8 8 Average Capacity 7 | 7 8 7 8 8 7 Most Carried 8 | 4 8 8 6 5 8 Average Carried 4 | 2 4 4 4 5 4 Final Capacity 8 | 8 8 8 8 8 5 Final Carried 5 | 3 5 4 5 5 5 Class Distribution -------------------- 61% | Scavenger-Mutant 36% | Mutant Dominant Class ---------------- Scavenger-Mutant | -10/Materials Scavenger-Mutant | -10/Mines Scavenger-Mutant | -10/Exiles Scavenger-Mutant | -9/Mines Mutant | -8/Materials Resources | -11 -10 -10 -10 -9 -8 ----------- Run | Yrd Mat Min Exi Min Mat Matter Collected 474 | 277 85 52 . . 60 Remotely . | . . . . . . Salvage Created 839 | 164 403 56 . . 216 Parts 65 | 14 37 3 . . 11 Haulers Intercepted . | . . . . . . Recyclers Shooed 2 | 2 . . . . . Parts Field Recycled . | . . . . . . Retrieved Matter . | . . . . . . Parts Self-Destructed . | . . . . . . Prevented . | . . . . . . Kills | -11 -10 -10 -10 -9 -8 ------- Run | Yrd Mat Min Exi Min Mat Combat Hostiles Destroyed 21 | . 13 3 . . 5 Guns 19 | . 13 3 . . 3 AOE 2 | . . . . . 2 Classes Destroyed 7 | 2 4 . . . 1 Builder 2 | . 1 . . . 1 Tunneler 5 | 5 . . . . . Recycler 1 | 1 . . . . . Watcher 1 | . 1 . . . . Swarmer 8 | . 6 2 . . . Grunt 11 | . 7 1 . . 3 Hunter 2 | . . . . . 2 Best Kill Streak 9 | 2 9 2 . . 3 Combat Bots Only 8 | . 8 2 . . 2 Max Kills in Single Turn 2 | 1 2 1 . . 2 Gunslinging 1 | . 1 . . . . Exploded 1 | . . . . . 1 Melee . | . . . . . . Uniques/NPCs Destroyed . | . . . . . . Combat | -11 -10 -10 -10 -9 -8 -------- Run | Yrd Mat Min Exi Min Mat Hostile Shots Fired 218 | . 57 5 . 31 125 Missed 58 | . 9 1 . 10 38 Damage Taken 1830 | . 369 29 . 359 1073 Core 765 | . 85 9 . 118 553 Absorbed by Shields . | . . . . . . Ignored by Resistances 544 | . 118 10 . 100 316 Core Remaining (%) 57 | 100 . . . 15 . Volleys Fired 74 | 18 29 6 . 2 19 Largest 3 | 2 2 2 . 2 3 Hottest 89 | 80 80 40 . 40 89 Shots Fired 130 | 30 58 12 . 3 27 Gun 125 | 30 58 12 . 3 22 Cannon . | . . . . . . Launcher 5 | . . . . . 5 Special . | . . . . . . Kinetic 72 | . 35 12 . 3 22 Thermal 53 | 30 23 . . . . Explosive 5 | . . . . . 5 Electromagnetic . | . . . . . . Robot Hit Streak 26 | 9 26 3 . 4 15 Robot Miss Streak 2 | 1 2 2 . 2 1 Penetration Max . | . . . . . . Secondary Targets 7 | . 6 1 . . . Max Gunslinging Chain 1 | . 1 1 . . . Shots Hit Robots 104 | 27 48 5 . 1 23 Core Hits 55 | 7 27 4 . 2 15 Critical Kills . | . . . . . . Critical Parts Destroyed . | . . . . . . Critical Strikes 2 | 2 . . . . . Burn 2 | 2 . . . . . Melee Attacks . | . . . . . . Impact . | . . . . . . Slashing . | . . . . . . Piercing . | . . . . . . Sneak Attacks . | . . . . . . Combat Hostiles . | . . . . . . Follow-up Attacks . | . . . . . . Damage Inflicted 1682 | 321 447 51 . 24 839 Guns 1170 | 316 447 44 . 17 346 Cannons . | . . . . . . Explosions 483 | . . . . . 483 Melee . | . . . . . . Ramming 29 | 5 . 7 . 7 10 Kinetic 643 | . 236 44 . 17 346 Thermal 527 | 316 211 . . . . Explosive 483 | . . . . . 483 Electromagnetic . | . . . . . . Impact . | . . . . . . Slashing . | . . . . . . Piercing . | . . . . . . Highest Corruption 2 | . . . . 2 . Average Corruption 2 | . . . . 2 . Corruption Purged . | . . . . . . Corruption Blocked . | . . . . . . Effects 1 | . . . . 1 . Data Loss (minor) 1 | . . . . 1 . Overload Shots . | . . . . . . Overflow Damage 10 | . . . . . 10 Projectiles . | . . . . . . Explosions 10 | . . . . . 10 Melee . | . . . . . . Knockbacks . | . . . . . . Impact . | . . . . . . Kinetic . | . . . . . . Secondary . | . . . . . . Self-Inflicted Damage 74 | . . . . 3 71 Shots 2 | . . . . . 2 Rammed 7 | 1 . . . 1 5 Targets Rammed 15 | 1 . 2 . 1 11 Kicked 8 | . . 2 . . 6 Crushed . | . . . . . . Highest Temperature 118 | 90 118 10 . 28 7 Average Temperature 31 | 31 37 4 . 7 6 Received Heat Transfer 774 | . 204 18 . 120 432 Siege Activations . | . . . . . . Robots Corrupted . | . . . . . . Combat Hostiles . | . . . . . . Parts Fried . | . . . . . . Impact Corruptions . | . . . . . . Robots Melted . | . . . . . . Combat Hostiles . | . . . . . . Parts Melted 1 | 1 . . . . . Heat Transferred 1395 | 920 475 . . . . Parts Sabotaged . | . . . . . . Parts Stolen . | . . . . . . Parts Stripped . | . . . . . . Power Chain Reactions . | . . . . . . Alert | -11 -10 -10 -10 -9 -8 ------- Run | Yrd Mat Min Exi Min Mat Peak Influence 371 | 30 371 186 . . 169 Initial 56 | . 16 56 . . . Average 86 | 12 182 99 . . 22 Maximum Alert Level 1 | . 1 . . . . Low Security (%) 83 | 100 41 100 . 100 100 Level 1 16 | . 58 . . . . Level 2 . | . . . . . . Level 3 . | . . . . . . Level 4 . | . . . . . . Level 5 . | . . . . . . High Security . | . . . . . . Max Security . | . . . . . . Squads Dispatched 6 | . 3 1 . . 2 Investigation 6 | . 3 1 . . 2 Extermination . | . . . . . . Reinforcement . | . . . . . . Assault . | . . . . . . Garrison . | . . . . . . Intercept . | . . . . . . Searches Triggered . | . . . . . . Construction Impeded . | . . . . . . Haulers Reinforced . | . . . . . . Active Scanning Responses . | . . . . . . Cargo Convoy Interrupts . | . . . . . . Stealth | -11 -10 -10 -10 -9 -8 --------- Run | Yrd Mat Min Exi Min Mat Distress Signals . | . . . . . . Communications Jammed . | . . . . . . Distress Signals . | . . . . . . Times Spotted 35 | . 15 5 . 7 8 Peak Tracking Total 7 | . 4 3 . 7 3 Tactical Retreats 1 | . . . . 1 . Traps | -11 -10 -10 -10 -9 -8 ------- Run | Yrd Mat Min Exi Min Mat Traps Triggered 2 | . 1 . . . 1 Indirectly . | . . . . . . Trap Hack Attempts . | . . . . . . Triggered . | . . . . . . Disarmed 4 | . 4 . . . . Reprogrammed . | . . . . . . Reused . | . . . . . . Traps Extracted . | . . . . . . Installed . | . . . . . . Triggered . | . . . . . . Machines | -11 -10 -10 -10 -9 -8 ---------- Run | Yrd Mat Min Exi Min Mat Machines Disabled 2 | . . . . . 2 Max in Single Turn 1 | . . . . . 1 Machines Repaired . | . . . . . . Machines Dismantled . | . . . . . . Machines Sabotaged . | . . . . . . Overloaded Fab Kills . | . . . . . . Hacking | -11 -10 -10 -10 -9 -8 --------- Run | Yrd Mat Min Exi Min Mat Machines Accessed 8 | . 3 2 1 . 2 Terminals 5 | . 3 1 . . 1 Fabricators . | . . . . . . Repair Stations . | . . . . . . Recycling Units 1 | . . . . . 1 Scanalyzers . | . . . . . . Garrison Access . | . . . . . . Total Hacks 56 | . 17 11 23 . 5 Successful 43 | . 11 5 23 . 4 Failed 10 | . 6 3 . . 1 Catastrophic 2 | . 1 . . . 1 Database Lockouts 3 | . . 3 . . . Manual . | . . . . . . Terminals 29 | . 17 10 . . 2 Fabricators . | . . . . . . Repair Stations . | . . . . . . Recycling Units 3 | . . . . . 3 Scanalyzers . | . . . . . . Garrison Access . | . . . . . . Terminal Hacks 40 | . 11 5 23 . 1 Record 30 | . 2 4 23 . 1 Prototype ID Bank 1 | . 1 . . . . Open Door 1 | . . 1 . . . Branch Access Points 1 | . 1 . . . . Alert Level 1 | . 1 . . . . Locate Traps 1 | . 1 . . . . Disarm Traps 1 | . 1 . . . . Dispatch Records 1 | . 1 . . . . Security Status 1 | . 1 . . . . Hauler Manifests 2 | . 2 . . . . Fabricator Hacks . | . . . . . . Repair Station Hacks . | . . . . . . Recycling Unit Hacks 3 | . . . . . 3 Process 1 | . . . . . 1 Report Inventory 1 | . . . . . 1 Retrieve Components 1 | . . . . . 1 Scanalyzer . | . . . . . . Garrison Access Hacks . | . . . . . . Unauthorized Hacks . | . . . . . . Terminals . | . . . . . . Fabricators . | . . . . . . Repair Stations . | . . . . . . Recycling Units . | . . . . . . Scanalyzers . | . . . . . . Garrison Access . | . . . . . . Data Cores Recovered . | . . . . . . Used . | . . . . . . Hacking Detections 4 | . 2 1 . . 1 Full Trace Events 4 | . 2 1 . . 1 Feedback Events . | . . . . . . Feedback Blocked . | . . . . . . Robot Schematics Acquired . | . . . . . . Robots Built . | . . . . . . Authchips . | . . . . . . Time . | . . . . . . Total Robot Build Rating . | . . . . . . Part Schematics Acquired . | . . . . . . Parts Built . | . . . . . . Authchips . | . . . . . . Time . | . . . . . . Total Part Build Rating . | . . . . . . Parts Repaired . | . . . . . . Time . | . . . . . . Parts Recycled . | . . . . . . Recycled Matter 14 | . . . . . 14 Retrieved Matter . | . . . . . . Retrieved Components . | . . . . . . Parts Scanalyzed . | . . . . . . Part Schematics Acquired . | . . . . . . Parts Damaged . | . . . . . . Bothacking | -11 -10 -10 -10 -9 -8 ------------ Run | Yrd Mat Min Exi Min Mat Used RIF Installer . | . . . . . . Robots Hacked . | . . . . . . Non-combat . | . . . . . . Combat . | . . . . . . Robot Hacks Applied . | . . . . . . Relay Couplers Released . | . . . . . . Fabnet Peak Effective % . | . . . . . . Robots Rewired . | . . . . . . Allies Hacked . | . . . . . . Hacks Repelled . | . . . . . . Allies | -11 -10 -10 -10 -9 -8 -------- Run | Yrd Mat Min Exi Min Mat Total Allies 2 | . . 2 . . . Largest Group 2 | . . 2 1 . . Highest-Rated Group 42 | . . 42 31 . . Highest-Rated Ally 31 | . . 31 31 . . Total Orders . | . . . . . . Ally Attacks 8 | . . 8 . . . Total Damage 106 | . . 106 . . . Kills 2 | . . 2 . . . Allies Corrupted . | . . . . . . Allies Melted . | . . . . . . Intel | -11 -10 -10 -10 -9 -8 ------- Run | Yrd Mat Min Exi Min Mat Robot Analysis Total . | . . . . . . Derelict Logs Recovered 2 | . . 2 . . . Drone Launches . | . . . . . . Drone Recoveries . | . . . . . . Exploration | -11 -10 -10 -10 -9 -8 ------------- Run | Yrd Mat Min Exi Min Mat Turns Passed 2249 | 286 460 454 608 73 368 Spaces Moved 1481 | 141 236 356 504 58 186 Core 200 | 6 . . . 18 176 Treads 330 | 135 195 . . . . Legs 951 | . 41 356 504 40 10 Wheels . | . . . . . . Hover . | . . . . . . Flight . | . . . . . . Fastest Speed 50 | 50 120 120 120 100 100 Average Speed 130 | 155 153 120 120 117 133 Slowest Speed 250 | 160 190 120 120 200 250 Overloaded Moves . | . . . . . . Propulsion Burnouts . | . . . . . . Robots Hopped . | . . . . . . Cave-ins Triggered . | . . . . . . Exploration Rate (%) 35 | 9 37 61 77 15 14 Regions Visited 5 Branch Regions 3 Pre-discovered Areas 2 | . . 1 1 . . Known Exits Taken 1 | . 1 . . . . Unknown Exits Taken 4 | 1 . 1 1 1 . Scrap Searched 1 | . . 1 . . . Spaces Dug . | . . . . . . Terrain Destroyed 43 | . . . . . 43 Melee . | . . . . . . Projectile . | . . . . . . AOE 43 | . . . . . 43 Terrain Rammed . | . . . . . . Walls Destroyed . | . . . . . . Machines Disabled . | . . . . . . Actions | -11 -10 -10 -10 -9 -8 --------- Run | Yrd Mat Min Exi Min Mat Total 1683 | 178 283 375 507 60 280 Wait 40 | . . . . . 40 Move 1477 | 140 235 355 503 58 186 Hop . | . . . . . . Pick Up 33 | 10 8 2 1 . 12 Fast Attach . | . . . . . . Attach 22 | 8 . 3 1 . 10 Detach 5 | 1 . 2 1 . 1 Swap 6 | . 5 1 . . . Drop 11 | . 6 4 . . 1 Fire 74 | 18 29 6 . 2 19 Melee . | . . . . . . Ram 5 | . . . . . 5 Kick 8 | . . 2 . . 6 Crush 1 | 1 . . . . . Escape Stasis . | . . . . . . Rewire 1 | . . . 1 . . Trap . | . . . . . . Miscellaneous . | . . . . . . Route ------- -11/Scrapyard -10/Materials (discovered 2 exits: *Min x2) -10/Mines (discovered 2 exits: [*Mat] / *Exi) -10/Exiles -9/Mines -8/Materials History --------- Turn | Location | Event 3 | -11/Scrapyard | Discovered new exit (range 15) 287 | -11/Scrapyard | Entered Materials 307 | -10/Materials | Build established: Mutant 448 | -10/Materials | Destroyed 8 combat bots 556 | -10/Materials | Discovered new exit (range 15) 604 | -10/Materials | Identified exit to Mines 747 | -10/Materials | Entered Mines 796 | -10/Mines | Build established: Scavenger-Mutant 882 | -10/Mines | Found the Drone Emporium 889 | -10/Mines | Found Prototype Device 893 | -10/Mines | Identified Decoy Drone Bay 962 | -10/Mines | Central database locked down 962 | -10/Mines | Central database locked down 962 | -10/Mines | Central database locked down 1039 | -10/Mines | Learned location of Mines (-9) 1040 | -10/Mines | Discovered new exit (range 15) 1190 | -10/Mines | Deemed a non-threat by the Exiles lab entrance 1191 | -10/Mines | Discovered new exit (range 5) 1201 | -10/Mines | Entered Exiles 1201 | -10/Exiles | Accompanied by 1 ally 1231 | -10/Exiles | Led the pair of lost Derelicts to a safe place 1251 | -10/Exiles | Met 8R-AWN 1276 | -10/Exiles | Met EX-HEX 1348 | -10/Exiles | Met EX-DEC 1417 | -10/Exiles | Learned location of Zion (-7) 1511 | -10/Exiles | Discovered new exit (range 12) 1619 | -10/Exiles | Visited The Gauntlet 1809 | -10/Exiles | Entered Mines 1809 | -9/Mines | Discovered new exit (range 13) 1810 | -9/Mines | Assembled infested the area 1815 | -9/Mines | Assisted by a Guerilla fighting off Assembled 1849 | -9/Mines | Core integrity fell below 50% 1869 | -9/Mines | Core integrity fell below 20% 1882 | -9/Mines | Entered Materials 1882 | -8/Materials | Evolved 4 slots: Power x1, Propulsion x1, Utility x1, Weapon x1 1895 | -8/Materials | Lost 5 parts (1p2n2w) 2068 | -8/Materials | Lost 4 parts (1n2u1w) 2075 | -8/Materials | Core integrity fell below 50% 2126 | -8/Materials | Core integrity fell below 20% 2187 | -8/Materials | Build established: Mutant 2250 | -8/Materials | Destroyed by L-31 Rogue with Katana Last Messages --------------- U-05 Engineer builds a Door. U-05 Engineer lays Concrete. Dropped Carbon-fiber Leg. Acquired Carbon-fiber Leg. U-05 Engineer lays Concrete. Kicked U-05 Engineer. Acquired Carbon-fiber Leg. Slug penetrates G-47 Trooper. H-55 Commando destroyed. Terminal disabled. U-05 Engineer destroyed. U-05 Engineer lays Concrete. G-47 Trooper destroyed. Atomic Centrifuge disabled. U-05 Engineer lays Concrete. U-05 Engineer builds a Wall. U-05 Engineer lays Concrete. [Achievement: Let's See Who's Tougher] Sml. Storage Unit destroyed. Destroyed Sml. Storage Unit. Map ----- +----------------------------------------------------+ | ????????????????????????????????????????? | | ????????????????????????????????????????? | | ????????????????????????????????????????? | | ????????????????????????????????????????? | | ????????????????????????????????????????? | | ????????????????????????????????????????? | | ????????????????????????????????????????? | | ?????????????????????????????????????#??? | | ????????????????????????????????????????? | | ??????????????????????????????########### | | ??????????????????????????????# | | ??????????????????????????????# """ """ | | ??????????????????????????????# "" """ | | ???????????###########????????# """ """ | | ???????????# ! #????????# | | ???????????# ######???########### | | ???????????# """ """ # ############### | | ???????????# """ """ + | | ???????????# """ """ # T | | ???????????# # ########## | | ???????????# ## !# ??###### | | ???????????# ## % ???##### | | ???########### ###+ ### ??# | | ???# [% ??# | | ???# """ "" * # = #?# | | ???# """"""" @l[ !%* / #?# | | ???# """"" [ g ! ""????# | | ???# a ""????# | | ???# ! # u " ""????##### | | ???###########+### ""# ?????#?? | | ?????????? ]# #??#####+? ????? | | ???????? # ????????????? | | ?????? [ + ########+#####???????????? | | ?????# # #??????? ?????????????#?# | | ?????# ! ?# #???????? ????????????? ? | | ?????# ?####???????? ?????????????? | | ?????######??????????????""?????????????? | | ?????????????????????????"" ?????? ?????? | | ????????????????????????????????????????? | | ????????????????????????????????????????? | | ????????????????????????????????????????? | | ????????????????????????????????????????? | | | | | | | | | | | | | | | | | +----------------------------------------------------+ Best States ------------- Heat Dissipation 45 Energy Generation 14 Energy Capacity 250 Matter Stores 300 Matter Capacity 300 Sight Range 16 Terrain Scan Range 16 Terrain Scan Density 10 Resistance: KI 20 Resistance: TH 20 Resistance: EX 20 Resistance: EM 20 Resistance: I 20 Resistance: S 20 Resistance: P 20 Evasion (%) 55 Recoil Reduction 2 Offensive Hacking 10 Item Schematics ----------------- None Robot Schematics ------------------ None Fabricated ------------ Nothing Alien Tech Used ----------------- None Achievements -------------- I Survived The Infestation Let's See Who's Tougher Party Time Challenges ------------ None Game ------ Seed FlightNetworkThermoblaster Manual? 0 Play Time 00:23:20 Cumulative 1.3 hours Start 2024.04.01 @ 23:51:01 End 2024.04.02 @ 11:16:38 Sessions 2 Manual Loads 0 Difficulty Adventurer Special Mode None Game No. 2 Rogue 0 Adventurer 2 Explorer 0 Win Type - Total 0 Types 0/0/0/0/0/0/0/0/0 Lore% 5 Gallery% 8 Achievement% 8 Wizard Run 0 Options --------- Layout 1 ASCII 0 Keyboard 0 Movement Arrows Keybinds 0 Fullscreen 2 Font 24/Smallcaps Map View 50x35 Zoom Use 0% Tactical HUD 0 Map Filters NONE Filters NONE Steam 1 RUN: 9ec404b1-3275-4614-afe1-b5db35a2bc97